[Event "Titled Tuesday Blitz March 01 Late 2022"]
[White "Kovanova, Baira"]
[Black "Burke, Paul"]
[WhiteFideId "4164083"]
[BlackFideId "2605767"]
[WhiteElo "2190"]
[BlackElo "1817"]
[Result "1-0"]
[Round "06"]
[TimeControl "180+1"]
[Date "2022.03.02"]
[WhiteClock "0:00:15"]
[BlackClock "0:00:01"]

1. e4 {[%clk 0:02:59]}  e5 {[%clk 0:02:59]} 2. Nf3 {[%clk 0:02:59]}  Nc6 {[%clk 0:02:59]} 3. Bb5 {[%clk 0:02:59]}  f5 {[%clk 0:02:59]} 4. d3 {[%clk 0:02:58]}  Nf6 {[%clk 0:02:59]} 5. exf5 {[%clk 0:02:37]}  Be7 {[%clk 0:02:58]} 6. d4 {[%clk 0:02:29]}  e4 {[%clk 0:02:57]} 7. Ne5 {[%clk 0:02:28]}  O-O {[%clk 0:02:54]} 8. O-O {[%clk 0:02:23]}  a6 {[%clk 0:02:52]} 9. Be2 {[%clk 0:02:16]}  d5 {[%clk 0:02:49]} 10. c4 {[%clk 0:02:12]}  Bxf5 {[%clk 0:02:29]} 11. Nc3 {[%clk 0:02:11]}  Bd6 {[%clk 0:02:02]} 12. Bf4 {[%clk 0:02:04]}  Kh8 {[%clk 0:01:40]} 13. c5 {[%clk 0:01:28]}  Be7 {[%clk 0:01:20]} 14. Bg3 {[%clk 0:01:14]}  Nxe5 {[%clk 0:01:04]} 15. Bxe5 {[%clk 0:01:13]}  c6 {[%clk 0:01:02]} 16. f4 {[%clk 0:01:11]}  Qd7 {[%clk 0:00:59]} 17. Qd2 {[%clk 0:01:07]}  Rad8 {[%clk 0:00:54]} 18. Qe3 {[%clk 0:01:04]}  Ng4 {[%clk 0:00:53]} 19. Bxg4 {[%clk 0:00:59]}  Bxg4 {[%clk 0:00:53]} 20. h3 {[%clk 0:01:00]}  Be6 {[%clk 0:00:50]} 21. Na4 {[%clk 0:00:39]}  Rde8 {[%clk 0:00:42]} 22. Nb6 {[%clk 0:00:38]}  Qd8 {[%clk 0:00:42]} 23. g4 {[%clk 0:00:38]}  Bc8 {[%clk 0:00:37]} 24. Rf2 {[%clk 0:00:32]}  Bf6 {[%clk 0:00:35]} 25. Raf1 {[%clk 0:00:31]}  Bxe5 {[%clk 0:00:34]} 26. fxe5 {[%clk 0:00:31]}  Be6 {[%clk 0:00:27]} 27. Rf4 {[%clk 0:00:29]}  Rxf4 {[%clk 0:00:16]} 28. Qxf4 {[%clk 0:00:28]}  Qe7 {[%clk 0:00:15]} 29. Kg2 {[%clk 0:00:26]}  Kg8 {[%clk 0:00:15]} 30. Qe3 {[%clk 0:00:25]}  Rf8 {[%clk 0:00:15]} 31. Rf4 {[%clk 0:00:24]}  Rxf4 {[%clk 0:00:14]} 32. Qxf4 {[%clk 0:00:24]}  Qf7 {[%clk 0:00:14]} 33. Kg3 {[%clk 0:00:22]}  h6 {[%clk 0:00:12]} 34. b4 {[%clk 0:00:20]}  g5 {[%clk 0:00:12]} 35. Qxf7+ {[%clk 0:00:19]}  Kxf7 {[%clk 0:00:12]} 36. Kf2 {[%clk 0:00:19]}  Kg6 {[%clk 0:00:12]} 37. Na4 {[%clk 0:00:17]}  h5 {[%clk 0:00:11]} 38. gxh5+ {[%clk 0:00:17]}  Kxh5 {[%clk 0:00:10]} 39. Kg3 {[%clk 0:00:17]}  Bc8 {[%clk 0:00:05]} 40. Nc3 {[%clk 0:00:17]}  Be6 {[%clk 0:00:05]} 41. a4 {[%clk 0:00:17]}  Bf5 {[%clk 0:00:03]} 42. b5 {[%clk 0:00:16]}  axb5 {[%clk 0:00:02]} 43. axb5 {[%clk 0:00:16]}  cxb5 {[%clk 0:00:02]} 44. Nxb5 {[%clk 0:00:16]}  e3 {[%clk 0:00:02]} 45. Nc3 {[%clk 0:00:16]}  Bd3 {[%clk 0:00:01]} 46. Nxd5 {[%clk 0:00:15]}  e2 {[%clk 0:00:01]} 47. Kf2 {[%clk 0:00:15]}  Kh4 {[%clk 0:00:01]} 48. e6 {[%clk 0:00:15]} 1-0


[Site "https://www.chess.com"]

[Event "Titled Tuesday Blitz March 01 Late 2022"]
[White "Ladan, Nicholas"]
[Black "Aldokhin, Ivan"]
[WhiteFideId "30918855"]
[BlackFideId "24115720"]
[WhiteElo "2366"]
[BlackElo "2231"]
[Result "0-1"]
[Round "06"]
[TimeControl "180+1"]
[Date "2022.03.02"]
[WhiteClock "0:00:01"]
[BlackClock "0:00:29"]

1. d4 {[%clk 0:02:34]}  Nf6 {[%clk 0:02:57]} 2. Bf4 {[%clk 0:02:33]}  g6 {[%clk 0:02:57]} 3. Nc3 {[%clk 0:02:32]}  Bg7 {[%clk 0:02:58]} 4. e4 {[%clk 0:02:29]}  d6 {[%clk 0:02:58]} 5. Qd2 {[%clk 0:02:29]}  h6 {[%clk 0:02:58]} 6. f3 {[%clk 0:02:27]}  Nc6 {[%clk 0:02:58]} 7. Bc4 {[%clk 0:02:24]}  a6 {[%clk 0:02:50]} 8. a3 {[%clk 0:02:23]}  b5 {[%clk 0:02:40]} 9. Ba2 {[%clk 0:02:23]}  Bb7 {[%clk 0:02:38]} 10. Nge2 {[%clk 0:02:10]}  e5 {[%clk 0:02:20]} 11. dxe5 {[%clk 0:02:07]}  dxe5 {[%clk 0:02:20]} 12. Be3 {[%clk 0:02:05]}  Qxd2+ {[%clk 0:02:19]} 13. Bxd2 {[%clk 0:01:59]}  Rd8 {[%clk 0:02:16]} 14. O-O-O {[%clk 0:01:59]}  Nd4 {[%clk 0:02:09]} 15. Nxd4 {[%clk 0:01:58]}  exd4 {[%clk 0:02:08]} 16. Ne2 {[%clk 0:01:57]}  c5 {[%clk 0:02:05]} 17. Ba5 {[%clk 0:01:52]}  Rc8 {[%clk 0:02:01]} 18. Nf4 {[%clk 0:01:47]}  h5 {[%clk 0:01:53]} 19. Rhe1 {[%clk 0:01:44]}  h4 {[%clk 0:01:23]} 20. e5 {[%clk 0:01:40]}  Nh5 {[%clk 0:01:19]} 21. Nd5 {[%clk 0:01:25]}  Bxd5 {[%clk 0:01:10]} 22. Bxd5 {[%clk 0:01:24]}  Nf4 {[%clk 0:01:11]} 23. Bb7 {[%clk 0:01:20]}  Rb8 {[%clk 0:01:11]} 24. Bxa6 {[%clk 0:00:58]}  Kd7 {[%clk 0:01:11]} 25. b4 {[%clk 0:00:45]}  Kc6 {[%clk 0:01:04]} 26. bxc5 {[%clk 0:00:45]}  Ra8 {[%clk 0:00:57]} 27. Rxd4 {[%clk 0:00:41]}  Rxa6 {[%clk 0:00:52]} 28. Rxf4 {[%clk 0:00:24]}  Bh6 {[%clk 0:00:49]} 29. Bd2 {[%clk 0:00:22]}  Bxf4 {[%clk 0:00:49]} 30. Bxf4 {[%clk 0:00:23]}  Rxa3 {[%clk 0:00:49]} 31. Kb2 {[%clk 0:00:15]}  Ra4 {[%clk 0:00:49]} 32. Bg5 {[%clk 0:00:15]}  Rb4+ {[%clk 0:00:49]} 33. Kc3 {[%clk 0:00:15]}  Rc4+ {[%clk 0:00:49]} 34. Kd3 {[%clk 0:00:15]}  h3 {[%clk 0:00:47]} 35. g4 {[%clk 0:00:13]}  Ra8 {[%clk 0:00:44]} 36. Be7 {[%clk 0:00:13]}  Ra3+ {[%clk 0:00:43]} 37. Kd2 {[%clk 0:00:13]}  Rxf3 {[%clk 0:00:42]} 38. Re2 {[%clk 0:00:11]}  Rxg4 {[%clk 0:00:41]} 39. e6 {[%clk 0:00:10]}  Rg2 {[%clk 0:00:41]} 40. exf7 {[%clk 0:00:08]}  Rxf7 {[%clk 0:00:41]} 41. Bd6 {[%clk 0:00:08]}  g5 {[%clk 0:00:36]} 42. Ke3 {[%clk 0:00:08]}  g4 {[%clk 0:00:35]} 43. Rd2 {[%clk 0:00:06]}  Rf3+ {[%clk 0:00:35]} 44. Ke4 {[%clk 0:00:03]}  Rxd2 {[%clk 0:00:36]} 45. c4 {[%clk 0:00:04]}  bxc4 {[%clk 0:00:32]} 46. Bg3 {[%clk 0:00:01]}  Rxg3 {[%clk 0:00:29]} 47. hxg3 {[%clk 0:00:01]}  h2 {[%clk 0:00:29]} 0-1


[Site "https://www.chess.com"]

[Event "Titled Tuesday Blitz March 01 Late 2022"]
[White "Leiva, Gianmarco"]
[Black "Urazayev, Arystanbek"]
[WhiteFideId "3804399"]
[BlackFideId "13709810"]
[WhiteElo "2328"]
[BlackElo "2321"]
[Result "0-1"]
[Round "06"]
[TimeControl "180+1"]
[Date "2022.03.01"]
[WhiteClock "0:00:03"]
[BlackClock "0:01:05"]

1. d4 {[%clk 0:02:59]}  d5 {[%clk 0:02:59]} 2. Nf3 {[%clk 0:02:59]}  Nf6 {[%clk 0:03:00]} 3. c4 {[%clk 0:02:57]}  dxc4 {[%clk 0:03:00]} 4. Qa4+ {[%clk 0:02:57]}  Nbd7 {[%clk 0:02:57]} 5. g3 {[%clk 0:02:50]}  a6 {[%clk 0:02:57]} 6. Qxc4 {[%clk 0:02:50]}  b5 {[%clk 0:02:58]} 7. Qc2 {[%clk 0:02:49]}  Bb7 {[%clk 0:02:58]} 8. Bg2 {[%clk 0:02:50]}  e6 {[%clk 0:02:58]} 9. O-O {[%clk 0:02:50]}  c5 {[%clk 0:02:58]} 10. dxc5 {[%clk 0:02:45]}  Bxc5 {[%clk 0:02:58]} 11. Bg5 {[%clk 0:02:34]}  Rc8 {[%clk 0:02:57]} 12. Qd1 {[%clk 0:02:33]}  Qb6 {[%clk 0:02:56]} 13. Nc3 {[%clk 0:02:31]}  O-O {[%clk 0:02:51]} 14. Ne1 {[%clk 0:02:16]}  Bxg2 {[%clk 0:02:39]} 15. Kxg2 {[%clk 0:02:17]}  h6 {[%clk 0:02:39]} 16. Bxf6 {[%clk 0:02:03]}  Nxf6 {[%clk 0:02:40]} 17. e3 {[%clk 0:02:03]}  Rfd8 {[%clk 0:02:36]} 18. Qf3 {[%clk 0:01:53]}  Rd2 {[%clk 0:02:33]} 19. Rb1 {[%clk 0:01:50]}  Bxe3 {[%clk 0:02:28]} 20. Ra1 {[%clk 0:01:42]}  Bd4 {[%clk 0:02:27]} 21. Rb1 {[%clk 0:01:37]}  e5 {[%clk 0:02:21]} 22. Ne4 {[%clk 0:01:28]}  Nxe4 {[%clk 0:02:18]} 23. Qxe4 {[%clk 0:01:29]}  Rxb2 {[%clk 0:02:14]} 24. Rxb2 {[%clk 0:01:15]}  Bxb2 {[%clk 0:02:15]} 25. Qf5 {[%clk 0:01:15]}  Qc6+ {[%clk 0:02:10]} 26. Kg1 {[%clk 0:01:14]}  g6 {[%clk 0:02:05]} 27. Qg4 {[%clk 0:01:08]}  Kg7 {[%clk 0:01:59]} 28. h4 {[%clk 0:01:04]}  h5 {[%clk 0:01:58]} 29. Qg5 {[%clk 0:01:03]}  e4 {[%clk 0:01:58]} 30. Ng2 {[%clk 0:01:01]}  Bf6 {[%clk 0:01:58]} 31. Qf4 {[%clk 0:00:58]}  Qe6 {[%clk 0:01:54]} 32. Qd2 {[%clk 0:00:51]}  Rc4 {[%clk 0:01:45]} 33. Re1 {[%clk 0:00:49]}  Ra4 {[%clk 0:01:44]} 34. Re2 {[%clk 0:00:48]}  Rd4 {[%clk 0:01:40]} 35. Qc2 {[%clk 0:00:45]}  a5 {[%clk 0:01:37]} 36. Kh2 {[%clk 0:00:38]}  a4 {[%clk 0:01:37]} 37. a3 {[%clk 0:00:31]}  Qc4 {[%clk 0:01:33]} 38. Qb2 {[%clk 0:00:15]}  Rd1 {[%clk 0:01:29]} 39. Ne3 {[%clk 0:00:06]}  Bxb2 {[%clk 0:01:10]} 40. Nxc4 {[%clk 0:00:06]}  Bc1 {[%clk 0:01:09]} 41. Ne3 {[%clk 0:00:02]}  Rd3 {[%clk 0:01:08]} 42. Ng2 {[%clk 0:00:01]}  Bxa3 {[%clk 0:01:07]} 43. Rxe4 {[%clk 0:00:02]}  Bd6 {[%clk 0:01:06]} 44. Re8 {[%clk 0:00:01]}  a3 {[%clk 0:01:05]} 45. Ra8 {[%clk 0:00:01]}  b4 {[%clk 0:01:06]} 46. Ne3 {[%clk 0:00:02]}  Rxe3 {[%clk 0:01:04]} 47. fxe3 {[%clk 0:00:02]}  b3 {[%clk 0:01:05]} 48. Ra4 {[%clk 0:00:03]}  b2 {[%clk 0:01:05]} 49. Rxa3 {[%clk 0:00:03]}  Bxa3 {[%clk 0:01:04]} 50. g4 {[%clk 0:00:03]}  b1=Q {[%clk 0:01:05]} 0-1


[Site "https://www.chess.com"]

[Event "Titled Tuesday Blitz March 01 Late 2022"]
[White "Li, Ben"]
[Black "Kevlishvili, Robby"]
[WhiteFideId "2089980"]
[BlackFideId "1040634"]
[WhiteElo "2267"]
[BlackElo "2584"]
[Result "1/2-1/2"]
[Round "06"]
[TimeControl "180+1"]
[Date "2022.03.01"]
[WhiteClock "0:00:11"]
[BlackClock "0:00:21"]

1. d4 {[%clk 0:03:00]}  Nf6 {[%clk 0:02:58]} 2. c4 {[%clk 0:02:58]}  e6 {[%clk 0:02:53]} 3. Nf3 {[%clk 0:02:58]}  d5 {[%clk 0:02:51]} 4. Nc3 {[%clk 0:02:58]}  Be7 {[%clk 0:02:42]} 5. Bf4 {[%clk 0:02:58]}  O-O {[%clk 0:02:42]} 6. a3 {[%clk 0:02:58]}  a6 {[%clk 0:02:42]} 7. e3 {[%clk 0:02:58]}  dxc4 {[%clk 0:02:41]} 8. Bxc4 {[%clk 0:02:59]}  b5 {[%clk 0:02:41]} 9. Bd3 {[%clk 0:02:57]}  Bb7 {[%clk 0:02:41]} 10. O-O {[%clk 0:02:57]}  Nbd7 {[%clk 0:02:34]} 11. b4 {[%clk 0:02:57]}  Nh5 {[%clk 0:02:30]} 12. Be5 {[%clk 0:01:48]}  Bxf3 {[%clk 0:02:26]} 13. Qxf3 {[%clk 0:01:47]}  Nxe5 {[%clk 0:02:26]} 14. Bxh7+ {[%clk 0:01:47]}  Kxh7 {[%clk 0:02:21]} 15. Qxh5+ {[%clk 0:01:48]}  Kg8 {[%clk 0:02:21]} 16. Qxe5 {[%clk 0:01:48]}  Bf6 {[%clk 0:02:15]} 17. Qe4 {[%clk 0:01:46]}  Re8 {[%clk 0:02:14]} 18. f4 {[%clk 0:01:45]}  Qd7 {[%clk 0:02:13]} 19. Rfc1 {[%clk 0:01:39]}  a5 {[%clk 0:02:12]} 20. Qd3 {[%clk 0:01:27]}  axb4 {[%clk 0:02:06]} 21. axb4 {[%clk 0:01:28]}  Rxa1 {[%clk 0:01:59]} 22. Rxa1 {[%clk 0:01:29]}  e5 {[%clk 0:01:51]} 23. fxe5 {[%clk 0:01:23]}  Bxe5 {[%clk 0:01:51]} 24. Qxb5 {[%clk 0:01:21]}  c6 {[%clk 0:01:50]} 25. Qc4 {[%clk 0:01:09]}  Bf6 {[%clk 0:01:47]} 26. Nd1 {[%clk 0:00:40]}  g6 {[%clk 0:01:34]} 27. Rc1 {[%clk 0:00:37]}  Re6 {[%clk 0:01:33]} 28. Qc2 {[%clk 0:00:32]}  Qd5 {[%clk 0:01:23]} 29. Qd2 {[%clk 0:00:26]}  Qe4 {[%clk 0:01:15]} 30. h3 {[%clk 0:00:23]}  Bg5 {[%clk 0:01:12]} 31. Rc3 {[%clk 0:00:22]}  Rf6 {[%clk 0:01:10]} 32. Nf2 {[%clk 0:00:21]}  Qb1+ {[%clk 0:01:07]} 33. Rc1 {[%clk 0:00:21]}  Qf5 {[%clk 0:01:07]} 34. Ng4 {[%clk 0:00:20]}  Re6 {[%clk 0:01:06]} 35. Rf1 {[%clk 0:00:20]}  Qxg4 {[%clk 0:00:57]} 36. hxg4 {[%clk 0:00:21]}  Bxe3+ {[%clk 0:00:58]} 37. Qxe3 {[%clk 0:00:19]}  Rxe3 {[%clk 0:00:59]} 38. Rc1 {[%clk 0:00:18]}  Rd3 {[%clk 0:00:52]} 39. Rc4 {[%clk 0:00:18]}  Kf8 {[%clk 0:00:52]} 40. Kf2 {[%clk 0:00:18]}  Ke7 {[%clk 0:00:51]} 41. Ke2 {[%clk 0:00:18]}  Rb3 {[%clk 0:00:49]} 42. Rxc6 {[%clk 0:00:18]}  Rxb4 {[%clk 0:00:49]} 43. Ke3 {[%clk 0:00:17]}  Rb2 {[%clk 0:00:47]} 44. Kf3 {[%clk 0:00:17]}  Rd2 {[%clk 0:00:46]} 45. Rc4 {[%clk 0:00:16]}  Ke6 {[%clk 0:00:46]} 46. Ra4 {[%clk 0:00:16]}  Kf6 {[%clk 0:00:46]} 47. g3 {[%clk 0:00:16]}  Rd3+ {[%clk 0:00:45]} 48. Kf2 {[%clk 0:00:15]}  Kg5 {[%clk 0:00:44]} 49. d5 {[%clk 0:00:13]}  Rxd5 {[%clk 0:00:43]} 50. Rf4 {[%clk 0:00:13]}  f6 {[%clk 0:00:41]} 51. Kf3 {[%clk 0:00:13]}  Rd3+ {[%clk 0:00:41]} 52. Kf2 {[%clk 0:00:13]}  Ra3 {[%clk 0:00:40]} 53. Rb4 {[%clk 0:00:12]}  Ra2+ {[%clk 0:00:39]} 54. Kf3 {[%clk 0:00:12]}  Ra5 {[%clk 0:00:38]} 55. Kg2 {[%clk 0:00:12]}  Re5 {[%clk 0:00:36]} 56. Kh3 {[%clk 0:00:12]}  Re2 {[%clk 0:00:34]} 57. Rb5+ {[%clk 0:00:12]}  Kh6 {[%clk 0:00:34]} 58. Rb6 {[%clk 0:00:11]}  Rf2 {[%clk 0:00:34]} 59. Rc6 {[%clk 0:00:11]}  Kg7 {[%clk 0:00:32]} 60. Rb6 {[%clk 0:00:10]}  Kf7 {[%clk 0:00:32]} 61. Ra6 {[%clk 0:00:11]}  Ke7 {[%clk 0:00:31]} 62. Rb6 {[%clk 0:00:11]}  Kf7 {[%clk 0:00:26]} 63. Ra6 {[%clk 0:00:11]}  Kg7 {[%clk 0:00:25]} 64. Rb6 {[%clk 0:00:11]}  Kh6 {[%clk 0:00:23]} 65. Ra6 {[%clk 0:00:11]}  Kg7 {[%clk 0:00:21]} 66. Rb6 {[%clk 0:00:11]} 1/2-1/2


[Site "https://www.chess.com"]

[Event "Titled Tuesday Blitz March 01 Late 2022"]
[White "Mickiewicz, Piotr"]
[Black "Gelman, Alexander"]
[WhiteFideId "1114891"]
[BlackFideId "4118316"]
[WhiteElo "2266"]
[BlackElo "2375"]
[Result "0-1"]
[Round "06"]
[TimeControl "180+1"]
[Date "2022.03.02"]
[WhiteClock "0:00:03"]
[BlackClock "0:00:05"]

1. Nf3 {[%clk 0:02:54]}  Nf6 {[%clk 0:02:59]} 2. b3 {[%clk 0:02:53]}  c5 {[%clk 0:03:00]} 3. Bb2 {[%clk 0:02:54]}  d6 {[%clk 0:03:00]} 4. e3 {[%clk 0:02:54]}  e6 {[%clk 0:03:00]} 5. Bb5+ {[%clk 0:02:53]}  Nbd7 {[%clk 0:03:00]} 6. c4 {[%clk 0:02:52]}  a6 {[%clk 0:03:00]} 7. Bxd7+ {[%clk 0:02:51]}  Bxd7 {[%clk 0:03:00]} 8. d3 {[%clk 0:02:52]}  Bc6 {[%clk 0:02:59]} 9. Nbd2 {[%clk 0:02:53]}  Be7 {[%clk 0:02:58]} 10. O-O {[%clk 0:02:53]}  Qc7 {[%clk 0:02:55]} 11. e4 {[%clk 0:02:52]}  O-O {[%clk 0:02:52]} 12. Re1 {[%clk 0:02:52]}  b5 {[%clk 0:02:52]} 13. g3 {[%clk 0:02:40]}  Rab8 {[%clk 0:02:48]} 14. Qc2 {[%clk 0:02:38]}  h6 {[%clk 0:02:42]} 15. Re2 {[%clk 0:02:37]}  Ba8 {[%clk 0:02:41]} 16. Rae1 {[%clk 0:02:37]}  Rfd8 {[%clk 0:02:41]} 17. Nh4 {[%clk 0:02:30]}  Nd7 {[%clk 0:02:40]} 18. Ng2 {[%clk 0:02:29]}  Bf8 {[%clk 0:02:34]} 19. f4 {[%clk 0:02:28]}  d5 {[%clk 0:02:26]} 20. Nf3 {[%clk 0:02:12]}  dxc4 {[%clk 0:02:22]} 21. dxc4 {[%clk 0:02:11]}  bxc4 {[%clk 0:02:21]} 22. bxc4 {[%clk 0:02:10]}  Nb6 {[%clk 0:02:19]} 23. Be5 {[%clk 0:02:06]}  Bd6 {[%clk 0:02:19]} 24. Ne3 {[%clk 0:01:57]}  Bxe5 {[%clk 0:02:15]} 25. Nxe5 {[%clk 0:01:58]}  Rd4 {[%clk 0:02:12]} 26. N3g4 {[%clk 0:01:46]}  f6 {[%clk 0:01:56]} 27. Nf3 {[%clk 0:01:40]}  Rxc4 {[%clk 0:01:56]} 28. Qd3 {[%clk 0:01:39]}  Rd8 {[%clk 0:01:39]} 29. Qb1 {[%clk 0:01:38]}  Rb4 {[%clk 0:01:36]} 30. Qc2 {[%clk 0:01:38]}  c4 {[%clk 0:01:30]} 31. Qc3 {[%clk 0:01:06]}  Qc5+ {[%clk 0:01:27]} 32. Kg2 {[%clk 0:01:04]}  Na4 {[%clk 0:01:20]} 33. Nxf6+ {[%clk 0:01:02]}  Kf8 {[%clk 0:00:37]} 34. Qa1 {[%clk 0:00:49]}  c3 {[%clk 0:00:33]} 35. Ng4 {[%clk 0:00:46]}  Rb2 {[%clk 0:00:33]} 36. Nf2 {[%clk 0:00:42]}  Qc4 {[%clk 0:00:14]} 37. Rd1 {[%clk 0:00:14]}  Qxe2 {[%clk 0:00:06]} 38. Rxd8+ {[%clk 0:00:13]}  Ke7 {[%clk 0:00:06]} 39. Rxa8 {[%clk 0:00:06]}  Qxf2+ {[%clk 0:00:06]} 40. Kh3 {[%clk 0:00:06]}  Qxf3 {[%clk 0:00:07]} 41. Qd1 {[%clk 0:00:05]}  Qxd1 {[%clk 0:00:07]} 42. Ra7+ {[%clk 0:00:04]}  Kf6 {[%clk 0:00:06]} 43. Rf7+ {[%clk 0:00:05]}  Kxf7 {[%clk 0:00:06]} 44. e5 {[%clk 0:00:06]}  Rxa2 {[%clk 0:00:06]} 45. Kh4 {[%clk 0:00:03]}  g5+ {[%clk 0:00:06]} 46. Kh3 {[%clk 0:00:03]}  Qh5# {[%clk 0:00:05]} 0-1


[Site "https://www.chess.com"]

[Event "Titled Tuesday Blitz March 01 Late 2022"]
[White "Mikhalsky, Vladimir"]
[Black "Janaszak, Dawid"]
[WhiteFideId "14144352"]
[BlackFideId "1119206"]
[WhiteElo "2248"]
[BlackElo "2199"]
[Result "1/2-1/2"]
[Round "06"]
[TimeControl "180+1"]
[Date "2022.03.02"]
[WhiteClock "0:00:05"]
[BlackClock "0:00:09"]

1. c4 {[%clk 0:02:59]}  b5 {[%clk 0:02:58]} 2. cxb5 {[%clk 0:02:58]}  a6 {[%clk 0:02:59]} 3. bxa6 {[%clk 0:02:58]}  Bxa6 {[%clk 0:02:58]} 4. Nf3 {[%clk 0:02:54]}  Nf6 {[%clk 0:02:56]} 5. g3 {[%clk 0:02:54]}  c5 {[%clk 0:02:50]} 6. Bg2 {[%clk 0:02:53]}  Nc6 {[%clk 0:02:51]} 7. O-O {[%clk 0:02:51]}  e6 {[%clk 0:02:46]} 8. d4 {[%clk 0:02:46]}  d5 {[%clk 0:02:43]} 9. Nc3 {[%clk 0:02:45]}  Be7 {[%clk 0:02:36]} 10. dxc5 {[%clk 0:02:32]}  Bxc5 {[%clk 0:02:37]} 11. b3 {[%clk 0:02:30]}  O-O {[%clk 0:02:35]} 12. Bb2 {[%clk 0:02:30]}  Qe7 {[%clk 0:02:33]} 13. a3 {[%clk 0:02:25]}  Ba7 {[%clk 0:02:08]} 14. b4 {[%clk 0:02:23]}  Rab8 {[%clk 0:01:56]} 15. Rc1 {[%clk 0:02:09]}  Rfc8 {[%clk 0:01:50]} 16. Re1 {[%clk 0:02:07]}  h6 {[%clk 0:01:36]} 17. e4 {[%clk 0:02:00]}  Ng4 {[%clk 0:01:32]} 18. Rc2 {[%clk 0:01:37]}  d4 {[%clk 0:01:30]} 19. Na4 {[%clk 0:01:31]}  d3 {[%clk 0:01:24]} 20. Rd2 {[%clk 0:01:30]}  e5 {[%clk 0:01:12]} 21. Nh4 {[%clk 0:01:22]}  Nxf2 {[%clk 0:01:06]} 22. Rxf2 {[%clk 0:01:13]}  Bxf2+ {[%clk 0:01:03]} 23. Kxf2 {[%clk 0:01:12]}  Nxb4 {[%clk 0:00:59]} 24. axb4 {[%clk 0:00:58]}  Rc2+ {[%clk 0:00:59]} 25. Kg1 {[%clk 0:00:52]}  Qxb4 {[%clk 0:00:57]} 26. Bxe5 {[%clk 0:00:45]}  Re8 {[%clk 0:00:56]} 27. Bxg7 {[%clk 0:00:29]}  Kxg7 {[%clk 0:00:48]} 28. Nf5+ {[%clk 0:00:29]}  Kf8 {[%clk 0:00:46]} 29. Qa1 {[%clk 0:00:28]}  Qxe1+ {[%clk 0:00:37]} 30. Qxe1 {[%clk 0:00:27]}  d2 {[%clk 0:00:38]} 31. Qd1 {[%clk 0:00:20]}  Rc1 {[%clk 0:00:38]} 32. Nb2 {[%clk 0:00:19]}  Be2 {[%clk 0:00:34]} 33. Ne3 {[%clk 0:00:16]}  Rb8 {[%clk 0:00:23]} 34. Kf2 {[%clk 0:00:16]}  Bxd1 {[%clk 0:00:23]} 35. Nbxd1 {[%clk 0:00:16]}  Rbb1 {[%clk 0:00:20]} 36. Ke2 {[%clk 0:00:16]}  Ra1 {[%clk 0:00:17]} 37. Kxd2 {[%clk 0:00:13]}  Rcb1 {[%clk 0:00:16]} 38. Ke2 {[%clk 0:00:12]}  Ra2+ {[%clk 0:00:16]} 39. Kf3 {[%clk 0:00:12]}  Ra3 {[%clk 0:00:13]} 40. Kf4 {[%clk 0:00:11]}  Rb6 {[%clk 0:00:12]} 41. Bf3 {[%clk 0:00:10]}  Rf6+ {[%clk 0:00:12]} 42. Nf5 {[%clk 0:00:10]}  Ra2 {[%clk 0:00:11]} 43. Ne3 {[%clk 0:00:11]}  Rfa6 {[%clk 0:00:08]} 44. h4 {[%clk 0:00:10]}  R2a4 {[%clk 0:00:07]} 45. Nd5 {[%clk 0:00:10]}  Ra1 {[%clk 0:00:06]} 46. Nc7 {[%clk 0:00:10]}  Ra7 {[%clk 0:00:05]} 47. Nd5 {[%clk 0:00:10]}  R7a4 {[%clk 0:00:05]} 48. Nxh6 {[%clk 0:00:10]}  Rf1 {[%clk 0:00:04]} 49. Nf5 {[%clk 0:00:10]}  Ra3 {[%clk 0:00:03]} 50. Nd4 {[%clk 0:00:11]}  Ra4 {[%clk 0:00:01]} 51. Ke5 {[%clk 0:00:10]}  Rfa1 {[%clk 0:00:01]} 52. Nf5 {[%clk 0:00:10]}  Ra5 {[%clk 0:00:02]} 53. Bg4 {[%clk 0:00:10]}  R1a2 {[%clk 0:00:02]} 54. Kf6 {[%clk 0:00:09]}  R2a3 {[%clk 0:00:02]} 55. Kg5 {[%clk 0:00:09]}  Ra6 {[%clk 0:00:03]} 56. h5 {[%clk 0:00:09]}  Rc6 {[%clk 0:00:03]} 57. h6 {[%clk 0:00:09]}  Rg6+ {[%clk 0:00:03]} 58. Kf4 {[%clk 0:00:08]}  Raa6 {[%clk 0:00:04]} 59. Bh5 {[%clk 0:00:08]}  Rxh6 {[%clk 0:00:04]} 60. Nxh6 {[%clk 0:00:08]}  Rxh6 {[%clk 0:00:05]} 61. Bg4 {[%clk 0:00:08]}  Rh1 {[%clk 0:00:05]} 62. Bf5 {[%clk 0:00:08]}  Rf1+ {[%clk 0:00:05]} 63. Ke5 {[%clk 0:00:07]}  Kg7 {[%clk 0:00:06]} 64. g4 {[%clk 0:00:07]}  Rg1 {[%clk 0:00:07]} 65. Kf4 {[%clk 0:00:07]}  Rf1+ {[%clk 0:00:07]} 66. Ke5 {[%clk 0:00:07]}  Rg1 {[%clk 0:00:07]} 67. Kd6 {[%clk 0:00:07]}  Rf1 {[%clk 0:00:07]} 68. e5 {[%clk 0:00:07]}  Rd1 {[%clk 0:00:07]} 69. Kc6 {[%clk 0:00:07]}  Rc1+ {[%clk 0:00:07]} 70. Kd6 {[%clk 0:00:07]}  Rd1 {[%clk 0:00:08]} 71. e6 {[%clk 0:00:06]}  fxe6 {[%clk 0:00:08]} 72. Bxe6 {[%clk 0:00:07]}  Kg6 {[%clk 0:00:08]} 73. Bf5+ {[%clk 0:00:06]}  Kg5 {[%clk 0:00:08]} 74. Ke6 {[%clk 0:00:06]}  Re1+ {[%clk 0:00:08]} 75. Kf7 {[%clk 0:00:06]}  Rf1 {[%clk 0:00:07]} 76. Ne3 {[%clk 0:00:06]}  Rf3 {[%clk 0:00:08]} 77. Nd5 {[%clk 0:00:06]}  Rxf5+ {[%clk 0:00:08]} 78. gxf5 {[%clk 0:00:05]}  Kxf5 {[%clk 0:00:09]} 1/2-1/2


[Site "https://www.chess.com"]

[Event "Titled Tuesday Blitz March 01 Late 2022"]
[White "Oye-Stromberg, Alexander"]
[Black "Voit, Daria"]
[WhiteFideId "1525999"]
[BlackFideId "4182146"]
[WhiteElo "1934"]
[BlackElo "2323"]
[Result "0-1"]
[Round "06"]
[TimeControl "180+1"]
[Date "2022.03.02"]
[WhiteClock "0:00:08"]
[BlackClock "0:00:20"]

1. e4 {[%clk 0:03:00]}  c6 {[%clk 0:02:58]} 2. d4 {[%clk 0:03:00]}  d5 {[%clk 0:02:58]} 3. f3 {[%clk 0:03:01]}  g6 {[%clk 0:02:56]} 4. c3 {[%clk 0:02:55]}  Bg7 {[%clk 0:02:56]} 5. Be3 {[%clk 0:02:56]}  dxe4 {[%clk 0:02:51]} 6. fxe4 {[%clk 0:02:56]}  e5 {[%clk 0:02:51]} 7. Nf3 {[%clk 0:02:55]}  Bg4 {[%clk 0:02:49]} 8. Bc4 {[%clk 0:02:54]}  Nd7 {[%clk 0:02:23]} 9. O-O {[%clk 0:02:49]}  Qe7 {[%clk 0:02:17]} 10. Nbd2 {[%clk 0:02:38]}  Ngf6 {[%clk 0:02:11]} 11. Qb3 {[%clk 0:02:31]}  b5 {[%clk 0:01:49]} 12. Bd3 {[%clk 0:02:26]}  O-O {[%clk 0:01:45]} 13. a4 {[%clk 0:02:21]}  a6 {[%clk 0:01:40]} 14. Qc2 {[%clk 0:02:18]}  Rfe8 {[%clk 0:01:30]} 15. h3 {[%clk 0:02:17]}  Bxf3 {[%clk 0:01:30]} 16. Rxf3 {[%clk 0:02:15]}  exd4 {[%clk 0:01:07]} 17. cxd4 {[%clk 0:02:11]}  c5 {[%clk 0:01:07]} 18. dxc5 {[%clk 0:01:43]}  Ne5 {[%clk 0:01:06]} 19. Rf2 {[%clk 0:01:25]}  Nxd3 {[%clk 0:01:06]} 20. Qxd3 {[%clk 0:01:25]}  Rad8 {[%clk 0:01:00]} 21. Qb3 {[%clk 0:01:19]}  Nxe4 {[%clk 0:00:54]} 22. Nxe4 {[%clk 0:01:19]}  Qxe4 {[%clk 0:00:55]} 23. Qxf7+ {[%clk 0:01:12]}  Kh8 {[%clk 0:00:54]} 24. Bg5 {[%clk 0:01:09]}  Rf8 {[%clk 0:00:47]} 25. Bxd8 {[%clk 0:01:05]}  Rxf7 {[%clk 0:00:47]} 26. Rxf7 {[%clk 0:01:05]}  Qd4+ {[%clk 0:00:47]} 27. Kh1 {[%clk 0:01:00]}  Qxd8 {[%clk 0:00:47]} 28. axb5 {[%clk 0:01:00]}  Bxb2 {[%clk 0:00:31]} 29. Rb1 {[%clk 0:00:50]}  Qe8 {[%clk 0:00:21]} 30. Rbf1 {[%clk 0:00:23]}  Qxb5 {[%clk 0:00:21]} 31. Rc7 {[%clk 0:00:08]}  Qxf1+ {[%clk 0:00:20]} 0-1


[Site "https://www.chess.com"]